Cogmind - Beta 13 @@@ ROGUE MODE // 2024.03.31 @ 23:15:51 Player: MasterLemons Result: Destroyed by YI-UF0 with YI-UF0's Doublenader Performance ------------- Evolutions (0) 0 Regions Visited (4) 800 Robots Destroyed (14) 70 Value Destroyed (273) 273 Prototype IDs (5) 100 Alien Tech Used (0) 0 Bonus (300) 300 TOTAL SCORE: 1543 Bonus ------- Aligned with FarCom 300 Cogmind --------- Core Integrity 0/250 Matter 123/300 Energy 94/100 System Corruption 0% Temperature Cool (0) Movement Core (1400) Ox27 Location -9/Mines Parts ------- > --- POWER (1) -------- (None) > --- PROPULSION (2) --- (None) > --- UTILITY (2) ------ Huge Storage Unit > --- WEAPON (2) ------- Assault Rifle > --- INVENTORY (25) --- Ion Engine Ion Engine Ion Engine Ion Engine Ion Engine Terrain Scanner Peak State ------------ > --- POWER ------------ Ion Engine > --- PROPULSION ------- Light Treads Light Treads > --- UTILITY ---------- Huge Storage Unit Propulsion Shielding > --- WEAPON ----------- AWS/Gauss > --- INVENTORY -------- Ion Engine Ion Engine Ion Engine Ion Engine Ion Engine Light Nuclear Core Terrain Scanner Assault Rifle Grenade Launcher Grenade Launcher Mining Claw Mining Claw [Rating: 22] Favorites ----------- Power Ion Engine Engine Ion Engine Power Core Light Nuclear Core Propulsion Light Treads Treads Light Treads Utility Huge Storage Unit Device Terrain Scanner Storage Huge Storage Unit Processor Signal Interpreter Protection Propulsion Shielding Weapon Assault Rifle Ballistic Gun Assault Rifle Launcher Grenade Launcher Special Weapon Field Lobotomy Kit Slashing Weapon Longsword +1 Build | -11 -10 -10 -10 -9 ------- Run | Yrd Mat Min Exi Min Slots Evolved . | . . . . . Power . | . . . . . Propulsion . | . . . . . Utility . | . . . . . Weapon . | . . . . . Parts Attached 25 | 6 5 3 8 3 Power 3 | 1 1 . 1 . Engine 2 | 1 1 . . . Core 1 | . . . 1 . Reactor . | . . . . . Propulsion 3 | 2 1 . . . Treads 3 | 2 1 . . . Leg . | . . . . . Wheel . | . . . . . Hover . | . . . . . Flight . | . . . . . Utility 5 | 1 3 1 . . Device 1 | . 1 . . . Storage 2 | 1 1 . . . Processor 1 | . 1 . . . Hackware . | . . . . . Protection 1 | . . 1 . . Artifact . | . . . . . Weapon 14 | 2 . 2 7 3 Energy Gun . | . . . . . Energy Cannon . | . . . . . Ballistic Gun 4 | 2 . . 1 1 Ballistic Cannon . | . . . . . Launcher 4 | . . 2 . 2 Special Weapon 1 | . . . 1 . Impact Weapon . | . . . . . Slashing Weapon 5 | . . . 5 . Piercing Weapon . | . . . . . Special Melee Weapon . | . . . . . Unidentified Prototypes 3 | . . . 3 . Parts Lost 7 | . . . . 7 Power 1 | . . . . 1 Propulsion 2 | . . . . 2 Utility 1 | . . . . 1 Weapon 3 | . . . . 3 Highest Loss Streak 7 | . . . . 7 To Critical Strikes . | . . . . . Average Slot Usage (%) 95 | . 98 100 92 70 Engine 11 | . 14 14 8 . Core 2 | . . . 5 7 Treads 27 | . 27 28 28 21 Device 6 | . 11 2 . . Storage 14 | . 14 14 14 14 Processor 1 | . 1 . . . Protection 5 | . . 11 14 8 Ballistic Gun 16 | . 28 . . . Launcher 6 | . . 28 14 5 Slashing Weapon 2 | . . . 6 14 Naked Turns . | . . . . . Heaviest Build 92 | 14 90 92 92 89 Greatest Support 40 | 40 40 40 40 40 Greatest Overweight (x) 4 | . 2 2 2 4 Average Overweight (x) 1 | . 1 2 2 2 Largest Inventory Capacity 25 | 8 25 25 25 25 Average Capacity 21 | 5 19 25 25 25 Most Carried 13 | 4 10 10 13 9 Average Carried 7 | 2 6 9 9 8 Final Capacity 25 | 8 25 25 25 25 Final Carried 10 | 1 10 10 9 6 Class Distribution -------------------- 100% | Mutant Dominant Class ---------------- Mutant | -10/Materials Mutant | -10/Mines Mutant | -10/Exiles Mutant | -9/Mines Resources | -11 -10 -10 -10 -9 ----------- Run | Yrd Mat Min Exi Min Matter Collected 553 | 222 310 21 . . Remotely . | . . . . . Salvage Created 305 | . 289 6 . 10 Parts 28 | . 23 5 . . Haulers Intercepted . | . . . . . Recyclers Shooed 1 | . 1 . . . Parts Field Recycled . | . . . . . Retrieved Matter . | . . . . . Parts Self-Destructed . | . . . . . Prevented . | . . . . . Kills | -11 -10 -10 -10 -9 ------- Run | Yrd Mat Min Exi Min Combat Hostiles Destroyed 14 | . 7 3 . 4 Melee 1 | . . . . 1 Guns 7 | . 7 . . . AOE 6 | . . 3 . 3 Classes Destroyed 5 | . 4 . . 1 Operator 1 | . 1 . . . Watcher 3 | . 3 . . . Swarmer 6 | . 3 3 . . Grunt 4 | . 4 . . . Assembled 4 | . . . . 4 Best Kill Streak 4 | . 4 3 . 4 Combat Bots Only 4 | . 3 3 . 4 Max Kills in Single Turn 3 | . 1 3 . 2 Gunslinging . | . . . . . Exploded 3 | . . 3 . 2 Melee 1 | . . . . 1 Uniques/NPCs Destroyed . | . . . . . Combat | -11 -10 -10 -10 -9 -------- Run | Yrd Mat Min Exi Min Hostile Shots Fired 96 | . 51 14 . 31 Missed 26 | . 13 6 . 7 Damage Taken 1206 | . 382 76 . 748 Core 251 | . 50 2 . 199 Absorbed by Shields . | . . . . . Redirected to Shielding 42 | . . 5 . 37 Regen/Repaired (Parts) 54 | . 54 . . . Core Remaining (%) 100 | 100 . . . . Volleys Fired 46 | . 37 1 . 8 Largest 2 | . 2 2 . 1 Hottest 60 | . 40 60 . 30 Shots Fired 84 | . 74 2 . 8 Gun 75 | . 74 . . 1 Cannon . | . . . . . Launcher 9 | . . 2 . 7 Special . | . . . . . Kinetic 75 | . 74 . . 1 Thermal . | . . . . . Explosive 9 | . . 2 . 7 Electromagnetic . | . . . . . Robot Hit Streak 11 | . 11 . . 6 Robot Miss Streak 6 | . 6 . . 1 Penetration Max . | . . . . . Secondary Targets 1 | . 1 . . . Max Gunslinging Chain 1 | . 1 . . . Shots Hit Robots 47 | . 39 . . 8 Core Hits 30 | . 17 3 . 10 Critical Kills . | . . . . . Critical Parts Destroyed . | . . . . . Critical Strikes . | . . . . . Melee Attacks 2 | . . . . 2 Impact . | . . . . . Slashing 2 | . . . . 2 Piercing . | . . . . . Sneak Attacks . | . . . . . Combat Hostiles . | . . . . . Follow-up Attacks . | . . . . . Damage Inflicted 1043 | . 562 143 . 338 Guns 560 | . 560 . . . Cannons . | . . . . . Explosions 382 | . . 143 . 239 Melee 99 | . . . . 99 Ramming 2 | . 2 . . . Kinetic 560 | . 560 . . . Thermal . | . . . . . Explosive 382 | . . 143 . 239 Electromagnetic . | . . . . . Impact . | . . . . . Slashing 99 | . . . . 99 Piercing . | . . . . . Highest Corruption . | . . . . . Average Corruption . | . . . . . Corruption Purged . | . . . . . Corruption Blocked . | . . . . . Overload Shots . | . . . . . Overflow Damage 39 | . . 2 . 37 Projectiles . | . . . . . Explosions 2 | . . 2 . . Melee 37 | . . . . 37 Knockbacks . | . . . . . Impact . | . . . . . Kinetic . | . . . . . Secondary . | . . . . . Self-Inflicted Damage 28 | . . 17 . 11 Shots 3 | . . 2 . 1 Rammed 2 | . 2 . . . Targets Rammed 2 | . 2 . . . Kicked . | . . . . . Crushed . | . . . . . Highest Temperature 5 | . 5 . . . Average Temperature 3 | . 3 . . . Received Heat Transfer 164 | . 144 . . 20 Siege Activations . | . . . . . Robots Corrupted . | . . . . . Combat Hostiles . | . . . . . Parts Fried . | . . . . . Impact Corruptions . | . . . . . Robots Melted . | . . . . . Combat Hostiles . | . . . . . Parts Melted . | . . . . . Heat Transferred . | . . . . . Parts Sabotaged . | . . . . . Parts Stolen . | . . . . . Parts Stripped . | . . . . . Power Chain Reactions . | . . . . . Alert | -11 -10 -10 -10 -9 ------- Run | Yrd Mat Min Exi Min Peak Influence 127 | . 127 84 . 15 Initial 1 | . . 1 . . Average 19 | . 19 37 . 2 Maximum Alert Level . | . . . . . Low Security (%) 100 | 100 100 100 . 100 Level 1 . | . . . . . Level 2 . | . . . . . Level 3 . | . . . . . Level 4 . | . . . . . Level 5 . | . . . . . High Security . | . . . . . Max Security . | . . . . . Squads Dispatched 1 | . 1 . . . Investigation . | . . . . . Extermination . | . . . . . Reinforcement 1 | . 1 . . . Assault . | . . . . . Garrison . | . . . . . Intercept . | . . . . . Searches Triggered . | . . . . . Construction Impeded . | . . . . . Haulers Reinforced . | . . . . . Active Scanning Responses . | . . . . . Cargo Convoy Interrupts . | . . . . . Stealth | -11 -10 -10 -10 -9 --------- Run | Yrd Mat Min Exi Min Distress Signals 2 | . 2 . . . Communications Jammed . | . . . . . Distress Signals . | . . . . . Times Spotted 29 | . 17 3 . 9 Peak Tracking Total 5 | . 4 3 . 5 Tactical Retreats . | . . . . . Traps | -11 -10 -10 -10 -9 ------- Run | Yrd Mat Min Exi Min Traps Triggered . | . . . . . Indirectly . | . . . . . Trap Hack Attempts . | . . . . . Triggered . | . . . . . Disarmed . | . . . . . Reprogrammed . | . . . . . Reused . | . . . . . Traps Extracted . | . . . . . Installed . | . . . . . Triggered . | . . . . . Machines | -11 -10 -10 -10 -9 ---------- Run | Yrd Mat Min Exi Min Machines Disabled 1 | . 1 . . . Max in Single Turn 1 | . 1 . . . Machines Repaired . | . . . . . Machines Dismantled . | . . . . . Machines Sabotaged . | . . . . . Overloaded Fab Kills . | . . . . . Hacking | -11 -10 -10 -10 -9 --------- Run | Yrd Mat Min Exi Min Machines Accessed 6 | . 5 . 1 . Terminals 3 | . 3 . . . Fabricators . | . . . . . Repair Stations 1 | . 1 . . . Recycling Units 1 | . 1 . . . Scanalyzers . | . . . . . Garrison Access . | . . . . . Total Hacks 19 | . 10 . 9 . Successful 16 | . 7 . 9 . Failed 3 | . 3 . . . Catastrophic 1 | . 1 . . . Database Lockouts . | . . . . . Manual 1 | . . . 1 . Terminals 5 | . 5 . . . Fabricators . | . . . . . Repair Stations 2 | . 2 . . . Recycling Units 3 | . 3 . . . Scanalyzers . | . . . . . Garrison Access . | . . . . . Terminal Hacks 13 | . 4 . 9 . Record 9 | . . . 9 . Prototype ID Bank 1 | . 1 . . . Registered Components 1 | . 1 . . . Zone Layout 2 | . 2 . . . Fabricator Hacks . | . . . . . Repair Station Hacks 2 | . 2 . . . Scan Component 1 | . 1 . . . Repair 1 | . 1 . . . Recycling Unit Hacks 1 | . 1 . . . Report Inventory 1 | . 1 . . . Scanalyzer . | . . . . . Garrison Access Hacks . | . . . . . Unauthorized Hacks . | . . . . . Terminals . | . . . . . Fabricators . | . . . . . Repair Stations . | . . . . . Recycling Units . | . . . . . Scanalyzers . | . . . . . Garrison Access . | . . . . . Data Cores Recovered . | . . . . . Used . | . . . . . Hacking Detections 2 | . 2 . . . Full Trace Events . | . . . . . Feedback Events . | . . . . . Feedback Blocked . | . . . . . Robot Schematics Acquired . | . . . . . Robots Built . | . . . . . Authchips . | . . . . . Time . | . . . . . Total Robot Build Rating . | . . . . . Part Schematics Acquired . | . . . . . Parts Built . | . . . . . Authchips . | . . . . . Time . | . . . . . Total Part Build Rating . | . . . . . Parts Repaired 1 | . 1 . . . Time 26 | . 26 . . . Parts Recycled . | . . . . . Recycled Matter . | . . . . . Retrieved Matter . | . . . . . Retrieved Components . | . . . . . Parts Scanalyzed . | . . . . . Part Schematics Acquired . | . . . . . Parts Damaged . | . . . . . Bothacking | -11 -10 -10 -10 -9 ------------ Run | Yrd Mat Min Exi Min Used RIF Installer . | . . . . . Robots Hacked . | . . . . . Non-combat . | . . . . . Combat . | . . . . . Robot Hacks Applied . | . . . . . Relay Couplers Released . | . . . . . Fabnet Peak Effective % . | . . . . . Robots Rewired . | . . . . . Allies Hacked . | . . . . . Hacks Repelled . | . . . . . Allies | -11 -10 -10 -10 -9 -------- Run | Yrd Mat Min Exi Min Total Allies . | . . . . . Largest Group . | . . . . . Highest-Rated Group . | . . . . . Highest-Rated Ally . | . . . . . Total Orders . | . . . . . Ally Attacks . | . . . . . Total Damage . | . . . . . Kills . | . . . . . Allies Corrupted . | . . . . . Allies Melted . | . . . . . Intel | -11 -10 -10 -10 -9 ------- Run | Yrd Mat Min Exi Min Robot Analysis Total . | . . . . . Derelict Logs Recovered . | . . . . . Drone Launches . | . . . . . Drone Recoveries . | . . . . . Exploration | -11 -10 -10 -10 -9 ------------- Run | Yrd Mat Min Exi Min Turns Passed 2437 | 64 1377 115 797 84 Spaces Moved 817 | 36 486 34 244 17 Core 5 | 5 . . . . Treads 812 | 31 486 34 244 17 Legs . | . . . . . Wheels . | . . . . . Hover . | . . . . . Flight . | . . . . . Fastest Speed 50 | 50 160 320 320 320 Average Speed 270 | 144 248 320 320 357 Slowest Speed 480 | 160 320 320 320 480 Overloaded Moves . | . . . . . Propulsion Burnouts . | . . . . . Robots Hopped . | . . . . . Cave-ins Triggered . | . . . . . Exploration Rate (%) 29 | 4 55 9 65 12 Regions Visited 4 Branch Regions 3 Pre-discovered Areas . | . . . . . Known Exits Taken 1 | . 1 . . . Unknown Exits Taken 3 | 1 . 1 1 . Scrap Searched 1 | . . 1 . . Spaces Dug . | . . . . . Terrain Destroyed 31 | . . 18 . 13 Melee . | . . . . . Projectile . | . . . . . AOE 31 | . . 18 . 13 Terrain Rammed . | . . . . . Walls Destroyed . | . . . . . Machines Disabled . | . . . . . Actions | -11 -10 -10 -10 -9 --------- Run | Yrd Mat Min Exi Min Total 965 | 48 585 39 263 30 Wait 35 | . 35 . . . Move 813 | 35 485 33 243 17 Hop . | . . . . . Pick Up 28 | 7 16 1 4 . Fast Attach . | . . . . . Attach 15 | 6 3 . 3 3 Detach 2 | . . . 2 . Swap 10 | . 2 3 5 . Drop 12 | . 5 1 6 . Fire 46 | . 37 1 . 8 Melee 2 | . . . . 2 Ram . | . . . . . Kick . | . . . . . Crush 2 | . 2 . . . Escape Stasis . | . . . . . Rewire . | . . . . . Trap . | . . . . . Miscellaneous . | . . . . . Route ------- -11/Scrapyard -10/Materials (discovered 2 exits: [*Mat] / *Min) -10/Mines (discovered 2 exits: [*Mat] / *Exi) -10/Exiles (discovered 2 exits: [*Min x2]) -9/Mines History --------- Turn | Location | Event 20 | -11/Scrapyard | Discovered new exit (range 15) 65 | -11/Scrapyard | Entered Materials 137 | -10/Materials | Discovered new exit (range 13) 281 | -10/Materials | Identified exit to Mines 318 | -10/Materials | Build established: Mutant 390 | -10/Materials | Discovered new exit (range 14) 478 | -10/Materials | Repaired Lgt. Treads 1442 | -10/Materials | Entered Mines 1446 | -10/Mines | Discovered new exit (range 11) 1544 | -10/Mines | Deemed a non-threat by the Exiles lab entrance 1544 | -10/Mines | Discovered new exit (range 5) 1557 | -10/Mines | Entered Exiles 1609 | -10/Exiles | Discovered new exit (range 15) 1653 | -10/Exiles | Met 8R-AWN 1705 | -10/Exiles | Met EX-HEX 1797 | -10/Exiles | Met EX-BIN 1861 | -10/Exiles | Aligned with FarCom system 1865 | -10/Exiles | Given EX-Vault access code 1948 | -10/Exiles | Opened EX-Vault 1964 | -10/Exiles | Found Prototype Slashing Weapon 1965 | -10/Exiles | Identified Longsword +1 1981 | -10/Exiles | Found Prototype Special Weapon 1982 | -10/Exiles | Identified Field Lobotomy Kit 1992 | -10/Exiles | Found Prototype Ballistic Gun 1994 | -10/Exiles | Identified AWS/Gauss 2091 | -10/Exiles | Warned to stay clear of 0b10 Research branches 2178 | -10/Exiles | Met EX-DEC 2312 | -10/Exiles | Discovered new exit (range 14) 2354 | -10/Exiles | Left Exiles lab with Longsword +1 2354 | -10/Exiles | Entered Mines 2355 | -9/Mines | Assembled infested the area 2360 | -9/Mines | Assisted by a Guerilla fighting off Assembled 2429 | -9/Mines | Core integrity fell below 50% 2437 | -9/Mines | Core integrity fell below 20% 2438 | -9/Mines | Destroyed by YI-UF0 with YI-UF0's Doublenader Last Messages --------------- 02404_ U-05 Engineer builds a Wall. 02405_ The unstable cave ceiling collapses. 02407_ Destroyed Asb. Hover Unit. 02408_ The unstable cave ceiling collapses. 02408_ U-05 Engineer lays Concrete. 02408_ YI-UF0: "KAPOW!" 02408_ U-05 Engineer destroyed. 02409_ The unstable cave ceiling collapses. 02409_ as-16300 destroyed. 02410_ YI-UF0: "WHAAM!" 02410_ YI-UF0: "BLAM!" 02412_ The unstable cave ceiling collapses. 02426_ Grenade Launcher destroyed. 02428_ Lgt. Treads destroyed. 02432_ YI-UF0: "WHOMP!" 02432_ as-32379 destroyed. 02434_ Grenade Launcher destroyed. 02435_ The unstable cave ceiling collapses. 02436_ Longsword +1 destroyed. 02437_ YI-UF0 mumbles something. Map ----- +----------------------------------------------------+ | | | | | | | | | | | ?????????????????????????????????????????????????? | | ?????????????????????????????????????????????????? | | ?????????????????????????????????????????????????? | | ?????????????????????????????????????????????????? | | ???????????????????????? ??? ????????????????????? | | ???????????????????????" """ ????????????????????? | | ??????????????????? ?"" """ ?#??????????????????? | | ??????????????????# """ #??????????????????? | | ??????????????????# ##?????????????????? | | ??????????????????? [ ###???????????????? | | ???????????????????? # = ##?? ???????????? | | ????????????????????%%% =### =??????????? | | ????????????????????? !% ?????????? | | ?????????????????????? # ?????????? | | ?????????????????????## ## g % ?????????? | | ?????????????????????# #????????? | | ?????????????????????# # ????????? | | ????????????????????## ?????????? | | ????????????????????# ????????? | | ????????????????????# ???????????? | | ????????????????????# @ #?????????????????? | | ????????????????????## #?????????????????? | | ????????????????????# #?????????????????? | | ???????????????????## ##?????????????????? | | ???????????????????# ##??????????????????? | | ?????????????????# ##???????????????????? | | ??????????????# # #????????????????????? | | ??????????????# #####????????????????????? | | ??????????????## #?????????????????????????? | | ???????????????# ??????????????????????????? | | ???????????????## ##??????????????????????????? | | ????????????????## ##???????????????????????????? | | ?????????????????####????????????????????????????? | | ?????????????????????????????????????????????????? | | ?????????????????????????????????????????????????? | | ?????????????????????????????????????????????????? | | ?????????????????????????????????????????????????? | | ?????????????????????????????????????????????????? | | ?????????????????????????????????????????????????? | | ?????????????????????????????????????????????????? | | ?????????????????????????????????????????????????? | | ?????????????????????????????????????????????????? | | ?????????????????????????????????????????????????? | | ?????????????????????????????????????????????????? | | ?????????????????????????????????????????????????? | +----------------------------------------------------+ Best States ------------- Heat Dissipation 25 Energy Generation 14 Energy Capacity 250 Matter Stores 300 Matter Capacity 300 Sight Range 16 Terrain Scan Range 14 Terrain Scan Density 10 Propulsion Shielding 33 Evasion (%) 40 Recoil Reduction 2 Item Schematics ----------------- None Robot Schematics ------------------ None Fabricated ------------ Nothing Alien Tech Used ----------------- None Achievements -------------- None Challenges ------------ None Game ------ Seed GhostInsulationBeamcaster Manual? 0 Play Time 00:15:31 Cumulative 4.8 hours Start 2024.03.31 @ 23:00:45 End 2024.03.31 @ 23:15:51 Sessions 1 Manual Loads 0 Difficulty Rogue Special Mode None Game No. 17 Rogue 14 Adventurer 3 Explorer 0 Win Type - Total 0 Types 0/0/0/0/0/0/0/0/0 Lore% 13 Gallery% 7 Achievement% 10 Wizard Run 0 Options --------- Layout 1 ASCII 0 Keyboard 0 Movement Mouse Keybinds 0 Fullscreen 1 Font 32/SmallcapsGlow Map View 77x35 Zoom Use 0% Tactical HUD 1 Map Filters NONE Filters NONE Steam 1 RUN: e37b35d4-6cd3-401d-866a-9c3f5ba47c1a